bitfinex/quotes_ETHUSD_20250322
["timestamp","ask_amount","ask_price","bid_price","bid_amount"]
[1742679582421,0.46959587,1991.2,1991.1,4.739]
[1742679583217,5.02161,1991.4,1991.1,4.739]
[1742679583413,0.46966347,1991.3,1991.1,4.739]
[1742679583600,5.02161,1991.4,1991.1,4.739]
[1742679583800,0.46966347,1991.3,1991.1,4.739]
[1742679584005,5.02161,1991.4,1991.1,4.739]
[1742679584505,0.46966347,1991.3,1991.1,4.739]
[1742679584706,5.02161,1991.4,1991.1,4.739]
[1742679585045,0.46966347,1991.3,1991.1,4.739]
[1742679585205,5.02161,1991.4,1991.1,4.739]
[1742679585417,0.46966347,1991.3,1991.1,4.739]
[1742679585621,5.02161,1991.4,1991.1,4.739]
[1742679585859,0.46966347,1991.3,1991.1,4.739]
[1742679586163,5.02161,1991.4,1991.1,4.739]
[1742679586350,0.46959587,1991.2,1991.1,4.739]
[1742679586953,5.02161,1991.4,1991.1,4.739]
[1742679587159,0.46924387,1991.2,1991.1,4.739]
[1742679587662,5.02161,1991.4,1991.1,4.739]
[1742679587848,0.46931147,1991.3,1991.1,4.739]
[1742679588056,5.02161,1991.4,1991.1,4.739]
[1742679588273,0.46931147,1991.3,1991.1,4.739]
[1742679588479,5.02161,1991.4,1991.1,4.739]
[1742679588680,0.46931147,1991.3,1991.1,4.739]
[1742679588851,5.02161,1991.4,1991.1,4.739]
[1742679589052,0.46931147,1991.3,1991.1,4.739]
[1742679589266,5.02161,1991.4,1991.1,4.739]
[1742679589468,0.46931147,1991.3,1991.1,4.739]
[1742679589668,5.02161,1991.4,1991.1,4.739]
[1742679589976,0.46931147,1991.3,1991.1,4.739]
[1742679590341,5.02161,1991.4,1991.1,4.739]
[1742679590555,0.46931147,1991.3,1991.1,4.739]
[1742679591035,0.46924387,1991.2,1991.1,4.739]
[1742679591255,5.02161,1991.4,1991.1,4.739]
[1742679591539,0.46931147,1991.3,1991.1,4.739]
[1742679591736,5.02161,1991.4,1991.1,4.739]
[1742679591935,0.46931147,1991.3,1991.1,4.739]
[1742679592139,5.02161,1991.4,1991.1,4.739]
[1742679592352,0.46931147,1991.3,1991.1,4.739]
[1742679592755,5.02161,1991.4,1991.1,4.739]
[1742679592955,0.46924387,1991.2,1991.1,4.739]
[1742679593142,5.02161,1991.4,1991.1,4.739]
[1742679593371,0.46931147,1991.3,1991.1,4.739]
[1742679593684,10.82192,1991.4,1991.1,4.739]
[1742679593849,0.46931147,1991.3,1991.1,4.739]
[1742679594185,10.82192,1991.4,1991.1,4.739]
[1742679594341,0.46924387,1991.2,1991.1,4.739]
[1742679594543,10.82192,1991.4,1991.1,4.739]
[1742679594745,0.46931147,1991.3,1991.1,4.739]
[1742679594943,10.82192,1991.4,1991.1,4.739]
[1742679595157,0.46931147,1991.3,1991.1,4.739]
[1742679595594,10.82192,1991.4,1991.1,4.739]
[1742679595912,5.02185,1991.3,1991.1,4.739]
[1742679596114,0.46924387,1991.2,1991.1,4.739]
[1742679600384,0.46924387,1991.2,1991.0,31.5725]
[1742679600626,5.49152387,1991.2,1991.1,4.707]
[1742679600825,5.02228,1991.2,1991.0,26.55]
[1742679601026,5.02234,1991.1,1991.0,26.55]
[1742679601195,1.01736737,1991.2,1991.1,5.02234]
[1742679601391,0.46789888,1991.1,1991.0,31.266]
[1742679601590,9.18746785,1991.6,1991.2,5.02199]
[1742679601807,2.26010918,1991.8,1991.4,5.02154]
[1742679602011,5.80295,1991.8,1991.5,4.722]
[1742679602321,5.02108,1991.6,1991.5,4.722]
[1742679602545,5.48982128,1991.6,1991.5,4.722]
[1742679602719,8.48982128,1991.6,1991.5,4.722]
[1742679614649,0.46874128,1991.6,1991.5,5.4793]
[1742679614852,8.02074,1991.8,1991.5,6.02723]
[1742679615091,0.47002484,1991.7,1991.5,6.02723]
[1742679621865,5.02034,1991.9,1991.5,11.04847]
[1742679622054,0.47009237,1991.8,1991.5,16.0696]
[1742679622255,0.47009237,1991.8,1991.6,0.79681713]
[1742679623003,0.47009237,1991.8,1991.7,5.77813]
[1742679623583,10.03994,1992.1,1991.7,5.77813]
[1742679623784,3.0,1992.2,1991.7,0.7573]
[1742679623785,0.47009237,1991.8,1991.7,0.7573]
[1742679624082,10.04054,1992.0,1991.7,0.7573]
[1742679624263,0.4701599,1991.9,1991.7,1.30523]
[1742679625189,5.4905199,1991.9,1991.8,4.703]
[1742679629092,5.02036,1991.9,1991.8,4.703]
[1742679629260,5.49144031,1991.9,1991.8,4.703]
[1742679631401,5.72721544,1991.9,1991.8,4.703]
[1742679637625,6.50051544,1991.9,1991.8,4.703]
[1742679649337,5.72721544,1991.9,1991.8,4.703]
[1742679657615,0.70685544,1991.9,1991.8,4.703]
[1742679658125,0.70685544,1991.9,1991.8,5.5222]
[1742679659154,0.23577513,1991.9,1991.8,5.5222]
[1742679659323,0.70647645,1991.9,1991.8,5.5222]
[1742679659509,5.0201,1992.0,1991.8,5.5222]
[1742679659838,0.70647645,1991.9,1991.8,5.5222]
[1742679660640,0.70647645,1991.9,1991.8,6.07442]
[1742679660839,5.01991,1992.1,1991.8,6.07442]
[1742679661039,0.70647645,1991.9,1991.8,6.07442]
[1742679661220,5.01991,1992.1,1991.8,6.12461967]
[1742679661424,0.70647645,1991.9,1991.8,6.12461967]
[1742679661608,5.01991,1992.1,1991.8,6.12462048]
[1742679662246,0.70653213,1992.0,1991.8,6.07442]
[1742679662539,0.70653213,1992.0,1991.9,0.607442]
[1742679662841,7.57939407,1992.2,1991.9,0.607442]
[1742679663006,0.70653213,1992.0,1991.9,0.607442]
[1742679663202,7.57939407,1992.2,1991.9,0.607442]
[1742679663442,0.70658781,1992.1,1991.9,0.607442]
[1742679663752,7.57939407,1992.2,1991.9,0.607442]
[1742679664054,0.70658781,1992.1,1991.9,0.607442]
[1742679664366,7.57939407,1992.2,1991.9,0.607442]
[1742679664513,0.70658781,1992.1,1991.9,0.607442]
[1742679664838,7.57939407,1992.2,1991.9,0.607442]
[1742679665037,0.70653213,1992.0,1991.9,0.607442]
[1742679665243,7.57939407,1992.2,1991.9,0.607442]
[1742679665453,0.70653213,1992.0,1991.9,0.607442]
[1742679665636,7.57939407,1992.2,1991.9,0.607442]
[1742679665838,0.70653213,1992.0,1991.9,0.607442]
[1742679666036,7.57939407,1992.2,1991.9,0.607442]
[1742679666345,0.70653213,1992.0,1991.9,0.607442]
[1742679666514,5.01958,1992.2,1991.9,0.607442]
[1742679667054,0.70707506,1992.1,1991.9,0.607442]
[1742679667553,0.70701938,1992.0,1991.9,0.607442]
[1742679667915,5.01958,1992.2,1991.9,0.607442]
[1742679668114,0.70701938,1992.0,1991.9,0.607442]
[1742679668556,5.01958,1992.2,1991.9,5.627732]
[1742679668743,0.70707506,1992.1,1991.9,5.627732]
[1742679669120,5.01958,1992.2,1991.9,5.627732]
[1742679669320,0.70701938,1992.0,1991.9,5.627732]
[1742679669818,7.57916407,1992.3,1991.9,5.627732]
[1742679670152,0.70713073,1992.2,1991.9,5.627732]
[1742679670323,0.70713073,1992.2,1992.0,0.5627732]
[1742679676078,0.70713073,1992.2,1992.0,5.5828032]
[1742679676266,3.2669448,1992.2,1992.0,0.5627732]
[1742679676465,4.0503448,1992.2,1991.9,31.56427]
[1742679677147,1.49053073,1992.2,1991.9,31.56427]
[1742679683585,0.70713073,1992.2,1991.9,31.56427]
[1742679706331,5.72671073,1992.2,1991.9,31.56427]
[1742679709140,0.70713073,1992.2,1991.9,31.56427]
[1742679724258,5.72670073,1992.2,1991.9,31.56427]
[1742679724415,7.57989407,1992.0,1991.9,31.193]
[1742679724621,9.05807966,1992.0,1991.9,31.193]
[1742679725652,9.05807966,1992.0,1991.9,26.544]
[1742679726821,9.44158524,1992.0,1991.9,26.544]
[1742679727030,10.88774576,1992.0,1991.9,26.544]
[1742679731564,5.02058,1991.8,1991.7,4.649]
[1742679731861,8.28816829,1991.8,1991.7,4.649]
[1742679733761,5.72835422,1991.8,1991.7,4.649]
[1742679735180,8.28816829,1991.8,1991.7,4.649]
[1742679740534,9.11166829,1991.8,1991.7,4.649]
[1742679741042,14.13243829,1991.8,1991.4,31.56344]
[1742679741367,5.02111,1991.6,1991.5,4.649]
[1742679741845,5.72815032,1991.6,1991.5,4.649]
[1742679759448,0.70704032,1991.6,1991.5,4.649]
[1742679760479,5.72812032,1991.6,1991.5,4.649]
[1742679764990,5.0216,1991.4,1991.2,26.547]
[1742679765295,5.0216,1991.4,1991.3,4.65]
[1742679767068,5.72850182,1991.4,1991.3,4.65]
[1742679768801,5.72850182,1991.4,1991.2,26.547]
[1742679769104,10.75033182,1991.4,1991.3,4.65]
[1742679769304,13.31014589,1991.4,1991.3,4.65]
[1742679769507,14.72358048,1991.4,1991.3,4.65]
[1742679771273,5.02184,1991.3,1991.2,26.547]
[1742679771476,8.28709243,1991.3,1991.2,31.197]
[1742679771713,5.72727836,1991.3,1991.2,31.197]
[1742679772218,9.75930513,1991.3,1991.2,26.547]
[1742679772397,9.75930513,1991.3,1990.6,27.3641]
[1742679772398,0.8242,1991.1,1990.6,27.3641]
[1742679772710,5.02335,1990.7,1990.6,26.549]
[1742679772912,5.72829147,1990.7,1990.6,26.549]
[1742679773705,5.72829147,1990.7,1990.6,31.199]
[1742679775810,9.44567369,1990.7,1990.6,26.549]
[1742679776291,5.02465,1990.2,1990.0,27.34]
[1742679776477,5.02465,1990.2,1990.1,4.65]
[1742679777101,5.02465,1990.2,1990.0,26.552]
[1742679777102,5.02487,1990.1,1990.0,26.552]
[1742679777310,5.02588,1989.7,1989.6,4.7731393]
[1742679782318,5.72503541,1989.7,1989.6,4.7731393]
[1742679784099,0.69915541,1989.7,1989.6,4.7731393]
[1742679784305,0.69915541,1989.7,1989.6,7.33295337]
[1742679784505,5.02538,1989.9,1989.6,4.7731393]
[1742679784810,0.69777438,1989.8,1989.6,12.35905337]
[1742679785014,0.69777438,1989.8,1989.7,5.86413601]
[1742679785222,5.02489,1990.1,1989.7,10.89001601]
[1742679785517,5.02489,1990.1,1989.8,5.07583091]
[1742679785906,5.02489,1990.1,1989.8,5.02558]
[1742679786725,5.02489,1990.1,1989.8,5.07583099]
[1742679791617,5.02473,1990.2,1989.8,5.07568099]
[1742679791830,10.04955,1990.2,1989.8,5.07568099]
[1742679792444,5.02473,1990.2,1989.8,10.10119099]
[1742679792644,8.02436,1990.3,1989.9,5.02527]
[1742679792806,13.04883,1990.3,1990.0,4.66]
[1742679793304,8.02436,1990.3,1990.0,4.66]
[1742679793609,5.02436,1990.3,1990.0,10.45552]
[1742679795252,5.02455,1990.3,1990.0,5.4304]
[1742679795423,5.02455,1990.3,1990.0,5.48064449]
[1742679795623,5.02455,1990.3,1990.0,5.4304]
[1742679796133,5.02455,1990.3,1990.0,5.48064449]
[1742679796534,5.02455,1990.3,1990.0,5.4304]
[1742679796753,5.02455,1990.3,1990.0,5.4806445]
[1742679797256,0.69740123,1990.2,1990.0,5.4806445]
[1742679797762,0.69740123,1990.2,1990.1,4.66]
[1742679798830,5.02431,1990.4,1990.1,9.68477]
[1742679799028,0.69742834,1990.2,1990.1,9.68477]
[1742679799228,13.04796,1990.5,1990.1,9.68477]
[1742679799451,0.69742834,1990.2,1990.1,9.68477]
[1742679799639,13.04796,1990.5,1990.1,9.68477]
[1742679799820,0.69807909,1990.2,1990.1,10.505412]
[1742679800026,5.02413,1990.4,1990.1,5.4304]
[1742679800539,0.69813487,1990.3,1990.1,5.48064207]
[1742679800856,5.02413,1990.4,1990.1,5.48064221]
[1742679801026,0.69807909,1990.2,1990.1,10.45522]
[1742679801225,8.02386,1990.5,1990.1,10.45522]
[1742679801427,0.69813331,1990.2,1990.1,10.45522]
[1742679801629,8.02386,1990.5,1990.1,10.45522]
[1742679801829,0.69813331,1990.2,1990.1,10.45522]
[1742679802159,0.69815976,1990.2,1990.1,10.45522]
[1742679802360,8.02392,1990.5,1990.1,10.45522]
[1742679802563,0.6982713,1990.4,1990.1,10.45522]
[1742679802749,0.6982713,1990.4,1990.2,0.05024106]
[1742679803858,0.6982713,1990.4,1990.1,10.45511]
[1742679804231,0.6982713,1990.4,1990.2,0.05024103]
[1742679804958,0.6982713,1990.4,1990.1,10.45511]
[1742679805963,0.6982713,1990.4,1990.1,37.02211]
[1742679806473,0.6982713,1990.4,1990.2,0.05024108]
[1742679806672,0.6982713,1990.4,1990.1,37.02211]
[1742679808748,0.6982713,1990.4,1990.2,5.02452]
[1742679809379,0.6982713,1990.4,1990.3,5.79996]
[1742679809665,0.6982713,1990.4,1990.3,8.18832712]
[1742679809857,7.58646513,1991.0,1990.7,5.02334]
[1742679810059,5.02273,1991.0,1990.8,4.665]
[1742679810375,0.64087126,1990.9,1990.8,4.665]
[1742679810785,8.39339513,1991.1,1990.8,4.665]
[1742679810934,0.64087126,1990.9,1990.8,4.665]
[1742679811137,5.82966,1991.1,1990.8,4.665]
[1742679811349,0.640927,1991.0,1990.8,4.665]
[1742679812849,0.8073,1990.9,1990.8,4.665]
[1742679813349,1.44891101,1990.9,1990.8,4.665]
[1742679814341,6.47176101,1990.9,1990.8,4.665]
[1742679814768,5.66446101,1990.9,1990.8,4.665]
[1742679814972,0.64161101,1990.9,1990.8,4.665]
[1742679819741,11.49491101,1990.9,1990.7,26.56]
[1742679819941,11.49491101,1990.9,1990.8,4.659]
[1742679820170,6.47191101,1990.9,1990.8,4.659]
[1742679823177,8.04840175,1990.9,1990.8,4.659]
[1742679824278,5.0231,1990.8,1990.7,26.56]
[1742679824579,5.66665481,1990.8,1990.7,31.218]
[1742679825178,5.66665481,1990.8,1990.7,26.56]
[1742679825381,5.66665481,1990.8,1990.7,31.22]
[1742679827659,6.97399936,1990.8,1990.7,26.56]
[1742679827983,15.02399572,1990.8,1990.7,26.56]
[1742679829080,5.02395,1990.5,1990.4,4.662]
[1742679829579,5.66733754,1990.5,1990.4,4.662]
[1742679829951,5.66733754,1990.5,1990.4,4.663]
[1742679830682,0.8328,1990.3,1990.2,26.559]
[1742679830853,5.85716,1990.3,1990.2,26.559]
[1742679831055,6.500436,1990.3,1990.2,26.559]
[1742679832281,5.02539,1989.9,1989.6,26.6791393]
[1742679832483,10.05098,1989.9,1989.7,4.669]
[1742679832692,0.64181928,1989.8,1989.7,4.669]
[1742679832995,10.05089,1989.9,1989.7,4.669]
[1742679833193,1.71109021,1989.8,1989.6,0.1181393]
[1742679833398,5.02588,1989.7,1989.6,0.1181393]
[1742679833694,0.64181928,1989.8,1989.6,5.1442593]
[1742679833901,0.63877705,1989.7,1989.6,5.1442593]
[1742679834257,10.05058,1990.0,1989.6,5.1442593]
[1742679834778,0.63888865,1989.9,1989.6,5.1441593]
[1742679837479,5.66426865,1989.9,1989.6,5.1441593]
[1742679838347,5.66426865,1989.9,1989.6,0.1181393]
[1742679840206,0.63888865,1989.9,1989.6,5.1441693]
[1742679840420,5.66434865,1989.9,1989.6,0.1181393]
[1742679840560,5.66434865,1989.9,1989.7,0.7768]
[1742679840561,5.66425865,1989.9,1989.7,0.7768]
[1742679840755,0.63888865,1989.9,1989.7,0.7768]
[1742679842793,0.63888865,1989.9,1989.8,26.567]
[1742679848783,6.24428788,1989.9,1989.8,26.567]
[1742679848983,4.90928501,1989.9,1989.8,26.567]
[1742679849194,5.66425865,1989.9,1989.8,26.567]
[1742679850305,5.66425865,1989.9,1989.5,31.43995001]
[1742679851406,5.0257,1989.8,1989.6,4.68]
[1742679851907,0.58475212,1989.7,1989.6,4.68]
[1742679857612,0.58475212,1989.7,1989.5,31.43995001]
[1742679857813,3.36195108,1989.6,1989.5,26.568]
[1742679858025,0.7968,1989.6,1989.5,26.568]
[1742679858214,1.38127489,1989.6,1989.5,26.568]
[1742679858913,0.58447489,1989.6,1989.5,26.568]
[1742679859094,0.58447489,1989.6,1989.5,31.242]
[1742679861081,0.58447489,1989.6,1989.5,26.568]
[1742679861082,1.40204049,1989.6,1989.5,26.568]
[1742679861287,12.79012157,1989.6,1989.5,26.568]
[1742679862417,15.35527265,1989.6,1989.5,26.568]
[1742679862609,5.02687,1989.4,1989.2,4.682]
[1742679862809,0.58330957,1989.3,1989.2,4.682]
[1742679862996,2.56515108,1989.3,1989.2,4.682]
[1742679863193,2.56515108,1989.3,1989.1,0.421523]
[1742679863194,5.02714,1989.2,1989.1,0.421523]
[1742679863398,8.97234482,1989.2,1989.1,0.421523]
[1742679865118,6.40719374,1989.2,1989.1,0.421523]
[1742679870313,6.39009374,1989.2,1989.1,0.421523]
[1742679871419,5.61039374,1989.2,1989.1,0.421523]
[1742679871622,0.58325374,1989.2,1989.1,0.421523]
[1742679874429,6.59926638,1989.2,1989.1,0.421523]
[1742679874729,5.61039374,1989.2,1989.1,5.103523]
[1742679874889,6.39009374,1989.2,1989.1,5.104523]
[1742679875293,0.58325374,1989.2,1989.1,5.104523]
[1742679877217,5.61039374,1989.2,1989.1,5.104523]
[1742679877416,7.17993338,1989.2,1989.1,5.104523]
[1742679877628,7.95963338,1989.2,1989.1,0.421523]
[1742679878437,11.33500531,1989.2,1989.1,0.421523]
[1742679891552,11.19866258,1989.2,1989.1,0.421523]
[1742679891752,11.31805848,1989.2,1989.1,0.421523]
[1742679895158,10.53835848,1989.2,1989.1,0.421523]
[1742679895530,14.81674115,1989.2,1989.1,0.421523]
[1742679895725,13.24720151,1989.2,1989.1,0.421523]
[1742679896127,3.56630691,1989.2,1989.1,1.241123]
[1742679896442,0.56630691,1989.2,1989.1,6.268513]
[1742679896636,4.27838267,1989.4,1989.1,6.268513]
[1742679896957,0.56636274,1989.3,1989.2,4.715]
[1742679897658,5.02648,1989.5,1989.3,0.8196]
[1742679897833,0.56641857,1989.4,1989.3,0.8196]
[1742679898032,5.59305857,1989.4,1989.3,0.8196]
[1742679898227,0.56641857,1989.4,1989.3,0.8196]
[1742679898645,0.56641857,1989.4,1989.3,1.53749583]
[1742679898844,12.30434267,1989.7,1989.3,6.56438583]
[1742679899063,0.5665302,1989.6,1989.5,5.8459]
[1742679899264,0.5665302,1989.6,1989.5,10.5689]
[1742679899835,5.02498,1990.1,1989.7,5.02567]
[1742679900165,0.56675341,1990.0,1989.8,0.8196]
[1742679900365,0.56675341,1990.0,1989.9,4.733]
[1742679902469,5.59187341,1990.0,1989.9,4.733]
[1742679902649,9.87025608,1990.0,1989.9,4.733]
[1742679904572,9.87025608,1990.0,1989.4,5.84616]
[1742679904573,5.02586,1989.8,1989.4,5.84616]
[1742679904776,14.33010267,1989.8,1989.5,4.734]
[1742679905066,0.52390549,1989.7,1989.5,4.734]
[1742679907374,5.54980549,1989.7,1989.5,4.734]
[1742679907560,10.57590549,1989.7,1989.5,4.734]
[1742679907765,5.54980549,1989.7,1989.5,4.734]
[1742679908860,0.52390549,1989.7,1989.5,5.35204513]
[1742679909059,0.52390549,1989.7,1989.5,6.11264513]
[1742679909777,0.52390549,1989.7,1989.5,11.13888513]
[1742679910071,9.30357267,1990.0,1989.6,5.07638701]
[1742679910275,0.52401709,1989.9,1989.6,10.05195]
[1742679910482,0.52401709,1989.9,1989.7,5.02584]
[1742679911742,1.02301709,1989.9,1989.7,5.02584]
[1742679913199,1.02301709,1989.9,1989.8,0.768]
[1742679915683,5.02575,1989.8,1989.5,31.308]
[1742679915900,5.02599,1989.7,1989.5,31.308]
[1742679916061,5.54989549,1989.7,1989.5,31.308]
[1742679916691,0.52390549,1989.7,1989.5,31.308]
[1742679916915,0.52390549,1989.7,1989.5,36.33434]
[1742679917386,0.52390549,1989.7,1989.5,31.308]
[1742679918361,0.52390549,1989.7,1989.6,5.02613]
[1742679918583,0.499,1989.9,1989.6,5.79413]
[1742679918788,0.52390549,1989.7,1989.6,5.79413]
[1742679919294,0.499,1989.9,1989.6,5.79413]
[1742679919469,0.52390549,1989.7,1989.6,5.79413]
[1742679919670,0.499,1989.9,1989.6,5.79413]
[1742679919869,0.52396129,1989.8,1989.6,10.82011]
[1742679920068,0.499,1989.9,1989.6,10.82011]
[1742679920274,0.52396129,1989.8,1989.7,5.02586]
[1742679920460,0.499,1989.9,1989.7,5.02586]
[1742679920662,0.52396129,1989.8,1989.7,5.02586]
[1742679920984,0.499,1989.9,1989.7,5.02586]
[1742679921286,0.52396129,1989.8,1989.7,5.02586]
[1742679921488,0.499,1989.9,1989.7,5.02586]
[1742679921690,0.52396129,1989.8,1989.7,5.02586]
[1742679921891,0.499,1989.9,1989.7,5.605246]
[1742679922198,0.52396129,1989.8,1989.7,5.605096]
[1742679922571,0.499,1989.9,1989.7,5.605096]
[1742679922774,0.52396129,1989.8,1989.7,5.605096]
[1742679923094,0.499,1989.9,1989.7,5.605096]
[1742679923297,0.52396129,1989.8,1989.7,5.605096]
[1742679923463,0.499,1989.9,1989.7,5.605096]
[1742679923664,0.52396129,1989.8,1989.7,5.605096]
[1742679923864,0.499,1989.9,1989.7,5.605096]
[1742679924096,0.52396129,1989.8,1989.7,5.605096]
[1742679924261,0.499,1989.9,1989.7,5.605096]
[1742679924466,0.52412879,1989.8,1989.7,5.605096]
[1742679924660,0.499,1989.9,1989.7,5.605096]
[1742679924896,0.52432428,1989.8,1989.7,10.630876]
[1742679925097,0.499,1989.9,1989.7,10.630876]
[1742679925397,0.52432428,1989.8,1989.7,5.605096]
[1742679925598,0.499,1989.9,1989.7,5.605096]
[1742679925801,0.52432428,1989.8,1989.7,10.630816]
[1742679926093,0.499,1989.9,1989.7,10.630816]
[1742679926303,0.499,1989.9,1989.8,5.02563]
[1742679930822,0.499,1989.9,1989.7,32.177226]
[1742679932115,0.69272512,1989.8,1989.7,32.177226]
[1742679932315,0.69272512,1989.8,1989.7,31.59784]
[1742679932612,0.499,1989.9,1989.7,32.38597]
[1742679932824,0.499,1989.9,1989.7,27.3602]
[1742679932987,0.63502343,1989.8,1989.7,27.3602]
[1742679933198,0.63502343,1989.8,1989.7,32.38599]
[1742679933493,0.63502343,1989.8,1989.7,37.41178]
[1742679933679,0.499,1989.9,1989.7,37.41178]
[1742679933879,0.63502343,1989.8,1989.7,37.41178]
[1742679934080,0.499,1989.9,1989.7,32.38599]
[1742679934284,0.63502343,1989.8,1989.7,32.38599]
[1742679934483,0.499,1989.9,1989.7,32.38599]
[1742679934805,0.63502343,1989.8,1989.7,32.38599]
[1742679935467,0.499,1989.9,1989.7,32.38599]
[1742679935673,0.63502343,1989.8,1989.7,32.38599]
[1742679935974,0.499,1989.9,1989.7,32.38599]
[1742679936192,0.63502343,1989.8,1989.7,32.38599]
[1742679936586,0.499,1989.9,1989.8,5.02563]
[1742679938578,0.499,1989.9,1989.8,5.81383]
[1742679943486,0.499,1989.9,1989.8,5.86407717]
[1742679944381,0.499,1989.9,1989.8,5.81383]
[1742679947205,1.13435292,1989.9,1989.8,5.81383]
[1742679947404,0.499,1989.9,1989.8,5.81383]
[1742679947601,1.13474792,1989.9,1989.8,5.81383]
[1742679949881,1.13474792,1989.9,1989.8,8.37815032]
[1742679950086,1.13474792,1989.9,1989.8,5.81383]
[1742679951117,1.13474792,1989.9,1989.8,8.37815032]
[1742679951617,1.13474792,1989.9,1989.8,5.81383]
[1742679953598,1.13474792,1989.9,1989.8,8.37815032]
[1742679954329,1.13474792,1989.9,1989.8,5.81383]
[1742679955124,1.13474792,1989.9,1989.8,8.37815032]
[1742679955309,1.13474792,1989.9,1989.8,5.81383]
[1742679967240,1.13474792,1989.9,1989.8,32.38183]
[1742679973038,1.13474792,1989.9,1989.8,34.94615032]
[1742679973937,0.499,1989.9,1989.8,34.94615032]
[1742679975105,0.499,1989.9,1989.8,32.38183]
[1742679975310,0.499,1989.9,1989.8,31.59363]
[1742679975528,1.13602265,1989.9,1989.8,31.59363]
[1742679976839,1.13602265,1989.9,1989.8,26.568]
[1742679977410,1.13602265,1989.9,1989.8,31.59363]
[1742679978540,1.13602265,1989.9,1989.8,34.15795032]
[1742679978905,1.13602265,1989.9,1989.8,34.53144975]
[1742679979110,0.499,1989.9,1989.8,35.85144975]
[1742679980415,0.499,1989.9,1989.8,38.85144975]
[1742679982345,0.8285,1990.9,1990.1,0.77]
[1742679982508,0.8285,1990.9,1990.6,7.58791032]
[1742679982712,0.63735636,1990.8,1990.7,31.28]
[1742679982920,0.8285,1990.9,1990.7,31.28]
[1742679983248,0.63756908,1990.8,1990.7,31.28]
[1742679987628,0.63756908,1990.8,1990.7,36.30335]
[1742679988150,0.6396666,1990.8,1990.7,36.30335]
[1742679988449,10.80283,1991.2,1990.7,36.30335]
[1742679988623,0.64176405,1990.8,1990.7,36.30335]
[1742679988827,5.02237,1991.1,1990.7,36.30335]
[1742679989027,0.64177526,1990.8,1990.7,36.30335]
[1742679989236,0.7584,1991.2,1990.8,5.02298]
[1742679989551,10.80297,1991.2,1990.7,36.30325]
[1742679989780,5.02245,1991.1,1990.7,36.30325]
[1742679989947,0.7584,1991.0,1990.7,36.30325]
[1742679991075,5.78066,1991.2,1990.7,36.30325]
[1742679991372,5.78001,1991.4,1990.9,5.02266]
[1742679991574,5.78001,1991.4,1990.9,10.04528]
[1742679992271,0.58928515,1991.3,1991.0,5.02255]
[1742679992576,0.7584,1991.4,1991.1,4.723]
[1742679992874,0.58924909,1991.2,1991.1,4.723]
[1742679993372,0.7584,1991.4,1991.1,4.723]
[1742679993678,0.58924909,1991.2,1991.1,4.723]
[1742679993845,0.7584,1991.4,1991.1,4.723]
[1742679994376,0.58929635,1991.3,1991.1,4.723]
[1742679994873,5.78004,1991.4,1991.1,4.723]
[1742679995076,0.58930508,1991.2,1991.1,4.723]
[1742679995278,5.78004,1991.4,1991.1,4.723]
[1742679995443,0.58931628,1991.2,1991.1,4.723]
[1742679995642,5.78004,1991.4,1991.1,4.723]
[1742679995843,0.58930508,1991.2,1991.1,4.723]
[1742679996076,5.78004,1991.4,1991.1,4.723]
[1742679996276,0.58930508,1991.2,1991.1,4.723]
[1742679996457,5.78004,1991.4,1991.1,4.723]
[1742679996977,0.58936353,1991.3,1991.1,5.5426]
[1742679997174,5.02164,1991.4,1991.2,0.05021539]
[1742679997355,5.02164,1991.4,1991.2,0.0502152]
[1742679998177,5.02164,1991.4,1991.1,5.5426]
[1742679998581,5.02164,1991.4,1991.2,0.05021524]
[1742679999147,5.77971,1991.6,1991.1,10.56493]
[1742679999478,5.77971,1991.6,1991.2,26.553]
[1742680000077,5.02138,1991.5,1991.2,26.553]
[1742680005101,5.02138,1991.5,1991.2,27.3135]
[1742680006894,10.04291,1991.5,1991.2,27.3135]
[1742680007061,5.02138,1991.5,1991.2,27.3135]
[1742680007266,0.59138898,1991.4,1991.2,26.553]
[1742680010179,0.59138898,1991.4,1991.2,31.57509]
[1742680010575,8.34030555,1991.6,1991.2,31.57509]
[1742680010777,0.59134173,1991.3,1991.2,31.57509]
[1742680010970,8.34030555,1991.6,1991.2,31.57509]
[1742680011280,0.59134173,1991.3,1991.2,31.57509]
[1742680011488,0.7618,1991.3,1991.2,31.255]
[1742680011653,1.35314173,1991.3,1991.2,31.255]
[1742680012053,0.59134173,1991.3,1991.2,31.255]
[1742680012347,5.02159,1991.4,1991.2,31.255]
[1742680012551,0.59134173,1991.3,1991.2,31.255]
[1742680012783,5.02159,1991.4,1991.2,31.255]
[1742680012983,0.59134173,1991.3,1991.2,31.255]
[1742680013454,5.02159,1991.4,1991.2,31.255]
[1742680013654,0.59210337,1991.3,1991.2,31.255]
[1742680014085,5.02159,1991.4,1991.2,31.255]
[1742680014285,0.59206979,1991.3,1991.2,31.255]
[1742680014587,8.34390555,1991.5,1991.2,31.255]
[1742680014786,0.59208098,1991.3,1991.2,31.255]
[1742680014986,8.34390555,1991.5,1991.2,31.255]
[1742680015292,0.59209218,1991.3,1991.2,31.255]
[1742680015508,0.7618,1991.7,1991.3,5.02161]
[1742680015820,0.7618,1991.7,1991.4,5.02157]
[1742680016302,3.32256555,1991.7,1991.4,5.02157]
[1742680016598,8.34362555,1991.7,1991.3,10.04329]
[1742680016761,5.78286,1991.7,1991.3,10.04329]
[1742680018187,0.7618,1991.7,1991.4,5.02153]
[1742680020490,3.32256555,1991.7,1991.4,5.02153]
[1742680020691,7.58212555,1991.5,1991.2,26.553]
[1742680020895,8.35222555,1991.5,1991.3,4.695]